fUSD/lending_fUSD_20250812
["ID","MTS","AMOUNT","RATE_DAILY","PERIOD"]
[378695095,1754959846484,-150.0,0.00054883,120]
[378695097,1754959846493,-150.0,0.00054884,120]
[378695099,1754959846503,-14029.6623714,0.00054884,4]
[378695100,1754959846512,-150.0,0.00054885,120]
[378695102,1754959846521,-150.0,0.00054886,120]
[378695104,1754959846530,-150.0,0.00054887,120]
[378695106,1754959846539,-150.0,0.0005489,120]
[378695108,1754959846549,-150.0,0.0005489,120]
[378695110,1754959846558,-150.0,0.0005489,120]
[378695112,1754959846567,-150.0,0.0005489,120]
[378695114,1754959846576,-150.0,0.0005489,120]
[378695116,1754959846585,-150.0,0.00054894,120]
[378695117,1754959846594,-150.0,0.00054895,120]
[378695119,1754959846604,-150.0,0.00054895,120]
[378695121,1754959846613,-150.0,0.00054897,120]
[378695123,1754959846622,-150.0,0.00054898,120]
[378695125,1754959846631,-150.0,0.00054899,120]
[378695127,1754959846640,-150.0,0.00054899,120]
[378695129,1754959846649,-150.0,0.000549,120]
[378695131,1754959846659,-150.0,0.00054901,120]
[378695133,1754959846668,-150.0,0.00054903,120]
[378695135,1754959846677,-150.0,0.00054904,120]
[378695137,1754959846687,-150.0,0.00054905,120]
[378695139,1754959846697,-150.0,0.00054906,120]
[378695140,1754959846706,-150.0,0.00054908,120]
[378695142,1754959846715,-150.0,0.00054908,120]
[378695144,1754959846724,-150.0,0.0005491,120]
[378695146,1754959846733,-150.0,0.00054911,120]
[378695148,1754959846742,-150.0,0.00054912,120]
[378695150,1754959846751,-150.0,0.00054913,120]
[378695152,1754959846760,-150.0,0.00054915,120]
[378695154,1754959846769,-150.0,0.00054916,120]
[378695156,1754959846778,-150.0,0.00054917,120]
[378695158,1754959846787,-150.0,0.00054917,120]
[378695159,1754959846796,-150.0,0.00054918,120]
[378695161,1754959846806,-150.0,0.00054919,120]
[378695163,1754959846815,-150.0,0.0005492,120]
[378695165,1754959846824,-150.0,0.00054921,120]
[378695167,1754959846834,-150.0,0.00054922,120]
[378695169,1754959846843,-150.0,0.00054925,120]
[378695171,1754959846851,-150.0,0.00054925,120]
[378695172,1754959846860,-150.0,0.00054926,120]
[378695174,1754959846870,-150.0,0.00054927,120]
[378695176,1754959846881,-150.0,0.00054929,120]
[378695178,1754959846890,-150.0,0.00054929,120]
[378695180,1754959846899,-150.0,0.0005493,120]
[378695182,1754959846909,-150.0,0.00054932,120]
[378695184,1754959846918,-150.0,0.00054934,120]
[378695186,1754959846927,-150.0,0.00054934,120]
[378695188,1754959846936,-150.0,0.00054935,120]
[378695190,1754959846945,-150.0,0.00054936,120]
[378695192,1754959846954,-150.0,0.00054937,120]
[378695194,1754959846963,-150.0,0.00054938,120]
[378695195,1754959846972,-150.0,0.00054938,120]
[378695197,1754959846981,-150.0,0.00054938,120]
[378695199,1754959846990,-150.0,0.00054942,120]
[378695201,1754959846999,-150.0,0.00054943,120]
[378695203,1754959847009,-150.0,0.00054944,120]
[378695205,1754959847018,-150.0,0.00054945,120]
[378695207,1754959847027,-150.0,0.00054946,120]
[378695209,1754959847036,-150.0,0.00054947,120]
[378695211,1754959847045,-150.0,0.00054948,120]
[378695213,1754959847054,-150.0,0.00054949,120]
[378695215,1754959847063,-150.0,0.00054951,120]
[378695217,1754959847072,-150.0,0.00054951,120]
[378695218,1754959847081,-150.0,0.00054951,120]
[378695220,1754959847090,-150.0,0.00054952,120]
[378695222,1754959847099,-150.0,0.00054956,120]
[378695224,1754959847108,-150.0,0.00054956,120]
[378695226,1754959847117,-150.0,0.00054957,120]
[378695228,1754959847127,-150.0,0.00054958,120]
[378695230,1754959847135,-150.0,0.00054958,120]
[378695232,1754959847145,-150.0,0.00054959,120]
[378695234,1754959847154,-150.0,0.0005496,120]
[378695236,1754959847163,-5418.37580551,0.0005496,4]
[378695251,1754959847314,-888.0,0.00032458,3]
[378695253,1754959847323,-1776.0,0.00034698,3]
[378695255,1754959847332,-153.0,0.00037894,30]
[378695257,1754959847341,-153.0,0.00037894,30]
[378695259,1754959847350,-153.0,0.00037894,30]
[378695261,1754959847359,-888.0,0.00053582,30]
[378695263,1754959847368,-11610.60000003,0.0005496,4]
[378695864,1754960506040,1848.0815913,0.00024,120]
[378695865,1754960562690,159.83,0.00013699,2]
[378695868,1754960599312,162.0,0.00024,120]
[378695869,1754960658094,-150.0,0.00017,2]
[378695870,1754960663325,-1000.0,0.00017014,5]
[378695871,1754960663350,-500.0,0.00017029,2]
[378695872,1754960663375,-2500.0,0.00017058,2]
[378695873,1754960663400,-1000.0,0.00017058,5]
[378695874,1754960663425,-500.0,0.00017058,2]
[378695875,1754960663449,-500.0,0.00017092,2]
[378695876,1754960663474,-2500.0,0.00017233,2]
[378695877,1754960671027,-301.79,0.00018021,2]
[378695878,1754960671052,-305.76,0.00018308,2]
[378695879,1754960671077,-2500.0,0.000187,2]
[378695880,1754960671102,-1000.0,0.000187,5]
[378695881,1754960671127,-250.0,0.000187,2]
[378695882,1754960671150,-500.0,0.000187,2]
[378695883,1754960671174,-2500.0,0.000187,2]
[378695884,1754960671197,-500.0,0.000187,2]
[378695885,1754960671222,-2500.0,0.000187,2]
[378695886,1754960671247,-1000.0,0.000187,5]
[378695887,1754960675190,302.84,0.00018069,2]
[378695888,1754960725273,-300.0,0.00020471,2]
[378695889,1754960725297,-305.14,0.00020471,2]
[378695890,1754960725329,-302.79,0.00020472,2]
[378695891,1754960725355,-305.34,0.00020472,2]
[378695892,1754960725380,-303.74,0.00020472,2]
[378695893,1754960725405,-301.06,0.00020472,2]
[378695894,1754960725429,-2701.2,0.00020472,2]
[378695895,1754960725453,-810.0,0.00020472,2]
[378695896,1754960725478,-957.0,0.00020472,2]
[378695897,1754960725502,-4145.0,0.00020472,2]
[378695898,1754960725528,-393.667,0.00020472,2]
[378695899,1754960725552,-700.0,0.0002051,2]
[378695900,1754960725577,-700.0,0.0002051,2]
[378695901,1754960725604,-700.0,0.0002051,2]
[378695902,1754960725629,-700.0,0.0002051,2]
[378695903,1754960725653,-700.0,0.0002051,2]
[378695904,1754960725677,-700.0,0.0002051,2]
[378695905,1754960725701,-700.0,0.0002051,2]
[378695906,1754960725725,-700.0,0.0002051,2]
[378695907,1754960725750,-300.68,0.0002075,2]
[378695908,1754960725775,-842.86497659,0.00020834,2]
[378695909,1754960725799,-150.0,0.00021918,2]
[378695910,1754960725824,-420.0,0.0002228,2]
[378695911,1754960725850,-150.99,0.00022562,2]
[378695912,1754960725875,-2037.08266359,0.00022851,2]
[378695913,1754960725901,-159.83,0.00023182,2]
[378695914,1754960725926,-810.0,0.00023472,2]
[378695915,1754960725951,-957.0,0.00023472,2]
[378695916,1754960725976,-4145.0,0.00023472,2]
[378695917,1754960726001,-587.0,0.00024248,2]
[378695918,1754960726049,888.0,0.00020971,3]
[378695919,1754960726081,1776.0,0.00023211,3]
[378695920,1754960732057,-1719.0,0.00025223,2]
[378695921,1754960732083,-1719.0,0.00025483,2]
[378695922,1754960732107,-1719.0,0.00025743,2]
[378695923,1754960732132,-1719.0,0.00026003,2]
[378695924,1754960732157,-701.60446458,0.00026003,2]
[378695925,1754960732180,-1719.0,0.00026263,2]
[378695926,1754960732205,-823.0,0.00026391,2]
[378695927,1754960732230,-810.0,0.00026472,2]
[378695928,1754960732254,-4145.0,0.00026472,2]
[378695929,1754960732279,-1719.0,0.00026523,2]
[378695930,1754960732307,-1719.0,0.00026783,2]
[378695931,1754960732332,-457.87080987,0.00026966,2]
[378695932,1754960732357,-211.73953792,0.00026966,2]
[378695933,1754960732382,-457.87080987,0.00027,3]
[378695934,1754960732408,-457.87080987,0.00027,3]
[378695935,1754960732434,-457.87080987,0.00027,7]
[378695936,1754960732458,-211.73953792,0.00027,3]
[378695937,1754960732485,-211.73953792,0.00027,7]
[378695938,1754960732510,-206.97,0.000272,7]
[378695939,1754960732539,-457.87080987,0.00028,10]
[378695940,1754960732565,-457.87080987,0.00028,10]
[378695941,1754960732591,-211.73953792,0.00028,10]
[378695942,1754960732615,-1152.0,0.00028723,2]
[378695943,1754960732639,-4145.0,0.00029472,2]
[378695944,1754960732678,888.0,0.00025723,3]
[378695945,1754960732845,1776.0,0.00027963,3]
[378695946,1754960733396,302.25,0.00020471,2]
[378695947,1754960733665,888.0,0.00020971,3]
[378695948,1754960733704,1776.0,0.00023211,3]
[378695949,1754960742984,391.293,0.00021783,2]
[378695950,1754960743236,888.0,0.00022283,3]
[378695951,1754960743297,1776.0,0.00024523,3]
[378695952,1754960750119,893.0,0.00021783,2]
[378695953,1754960750361,888.0,0.00021782,3]
[378695954,1754960750783,893.0,0.00024783,2]
[378695955,1754960751239,893.0,0.00027783,2]
[378695956,1754960751525,888.0,0.00028283,3]
[378695957,1754960769415,207.67379215,0.000249,2]
[378695958,1754960769511,207.67379204,0.00027436,7]
[378695959,1754960769603,207.67379204,0.00029971,13]
[378695960,1754960769675,888.0,0.000254,3]
[378695961,1754960769737,1776.0,0.0002764,3]
[378695962,1754960780814,251.27432189,0.00021918,2]
[378695963,1754960781069,888.0,0.00022418,3]
[378695964,1754960781119,1776.0,0.00024658,3]
[378695965,1754960829139,150.0,0.00017,2]
[378695966,1754960830122,182.94,0.000272,7]
[378695967,1754960830431,888.0,0.000277,3]
[378695968,1754960830481,1776.0,0.0002994,3]
[378695969,1754960837396,49.4638264,0.0003,7]
[378695976,1754960957255,207.67379204,0.000249,2]
[378695981,1754961023470,730.783,0.00021783,2]
[378695982,1754961023718,888.0,0.00022283,3]
[378695983,1754961023806,1776.0,0.00024523,3]
[378695989,1754961031858,-888.0,0.000254,3]
[378695990,1754961031867,-112.0,0.000254,2]
[378695991,1754961031917,-193.22,0.000254,2]
[378695992,1754961031926,-117.39318415,0.000254,2]
[378695993,1754961031975,-182.78681585,0.000254,2]
[378695994,1754961031987,-301.76,0.000254,2]
[378695995,1754961031996,-420.97812138,0.000254,2]
[378696356,1754961037664,-77.20637862,0.000254,2]
[378696357,1754961037674,-304.47,0.000254,2]
[378696358,1754961037684,-303.63,0.000254,2]
[378696359,1754961037693,-888.0,0.000259,3]
[378696360,1754961037703,-1776.0,0.0002764,3]
[378696361,1754961037712,-420.77925434,0.0002764,2]
[378696363,1754961037724,-77.40524566,0.0002764,2]
[378696365,1754961037734,-385.807853,0.000279,2]
[378696366,1754961037747,-441.76853167,0.000279,2]
[378696367,1754961037756,-176.42033264,0.000279,2]
[378696368,1754961037781,-321.76416736,0.000279,2]
[378696369,1754961037790,-678.23583264,0.00028,3]
[378696370,1754961037895,-164.62914395,0.00028,3]
[378696371,1754961037905,-842.86497659,0.00028,7]
[378696372,1754961037914,-500.0,0.00028,120]
[378696373,1754961037923,-1000.0,0.00028,120]
[378696374,1754961037932,-207.67379204,0.00028127,9]
[378696375,1754961037941,-1776.0,0.0002814,3]
[378696376,1754961037951,-842.86497659,0.00029,10]
[378696377,1754961037961,-150.99,0.00029,2]
[378696378,1754961037970,-178.97711083,0.000299,60]
[378696379,1754961037981,-201.85080284,0.000299,60]
[378696380,1754961037990,-169.56893227,0.00029998,2]
[378696381,1754961038001,-288.3018776,0.00029998,2]
[378696382,1754961038011,-2996.94,0.0003,7]
[378696384,1754961038020,-500.0,0.00030137,120]
[378696386,1754961038029,-1000.0,0.00030137,120]
[378696388,1754961038039,-172.69247606,0.00030222,25]
[378696390,1754961038048,-791.612,0.00030222,25]
[378696392,1754961038058,-500.0,0.00030248,120]
[378696394,1754961038067,-1000.0,0.00030248,120]
[378696396,1754961038076,-888.0,0.000305,3]
[378696398,1754961038085,-983.20861221,0.00030523,3]
[378696400,1754961038097,-792.79138779,0.00030523,3]
[378696402,1754961038106,-211.73953792,0.00030775,2]
[378696404,1754961038115,-500.0,0.000308,120]
[378696406,1754961038125,-1000.0,0.000308,120]
[378696408,1754961038134,-234.64,0.00031261,3]
[378696410,1754961038143,-207.67379204,0.00031355,16]
[378696412,1754961038152,-371.98624086,0.00032618,67]
[378696414,1754961038163,-8.84167277,0.00032618,67]
[378696416,1754961038173,-159.83,0.00032666,2]
[378696418,1754961038182,-1776.0,0.0003274,3]
[378696420,1754961038191,-500.0,0.00032877,7]
[378696422,1754961038201,-365.34339668,0.00032877,7]
[378696424,1754961038210,-500.0,0.00033151,120]
[378696426,1754961038220,-2500.0,0.00033151,120]
[378696428,1754961038229,-1000.0,0.00033151,120]
[378696431,1754961038238,-1351.0,0.000334,2]
[378696433,1754961038248,-1000.0,0.000337,2]
[378696434,1754961038257,-200.0,0.00034,30]
[378696436,1754961038267,-207.67379204,0.00034582,23]
[378696438,1754961038277,-307.9,0.00035,2]
[378696441,1754961038287,-380.82791363,0.00035336,73]
[378696443,1754961038298,-1448.38,0.00035524,30]
[378696444,1754961038309,-1000.0,0.00035868,2]
[378696447,1754961038318,-589.84,0.00036,2]
[378696448,1754961038327,-610.36,0.00036,2]
[378696450,1754961038337,-589.67,0.00036,2]
[378696452,1754961038346,-599.35,0.00036,2]
[378696455,1754961038355,-595.75,0.00036,2]
[378696456,1754961038364,-588.46,0.00036,2]
[378696458,1754961038374,-592.72,0.00036,2]
[378696461,1754961038383,-606.68,0.00036,2]
[378696462,1754961038392,-1351.42980873,0.000362,2]
[378696465,1754961038401,-1000.0,0.000364,2]
[378696467,1754961038413,-313.40354733,0.00036856,120]
[378696469,1754961038422,-188.96960064,0.00036856,120]
[378696471,1754961038432,-153.0,0.00037342,30]
[378696473,1754961038441,-280.0,0.000374,30]
[378696475,1754961038450,-300.0,0.00037529,2]
[378696477,1754961038459,-207.67379204,0.00037809,29]
[378696479,1754961038468,-4000.0,0.00037926,30]
[378696481,1754961038477,-545.99873481,0.00038037,2]
[378696615,1754961039708,-888.0,0.00025399,3]
[378696617,1754961039719,-305.87,0.000254,2]
[378696619,1754961039728,-43.41126519,0.00038037,2]
[378696621,1754961039737,-380.82791363,0.00038053,80]
[378696623,1754961039747,-608.02,0.00038137,2]
[378696625,1754961039757,-78.47621512,0.00038137,2]
[378696627,1754961039768,-511.44378488,0.00038137,2]
[378696629,1754961039778,-38.55621512,0.00038137,2]
[378696632,1754961039793,-568.90378488,0.00038137,2]
[378696634,1754961039802,-596.27,0.00038137,2]
[378696636,1754961039811,-589.89,0.00038147,2]
[378696638,1754961039821,-602.65,0.00038147,2]
[378696640,1754961039830,-170.0,0.00038202,7]
[378696642,1754961039839,-307.9,0.000385,2]
[378696644,1754961039849,-1000.0,0.00039113,120]
[378696646,1754961039858,-14.38621512,0.00039418,3]
[378696649,1754961039881,-651.61378488,0.00039418,3]
[378696651,1754961039891,-5000.0,0.00039806,120]
[378696653,1754961039900,-842.86497659,0.00039806,120]
[378696655,1754961039909,-606.42,0.00039874,30]
[378696657,1754961039919,-820.7066,0.0004,120]
[378696659,1754961039929,-1000.0,0.00040352,2]
[378696661,1754961039938,-380.82791363,0.00040771,86]
[378696663,1754961039948,-207.67379204,0.00041036,36]
[378696665,1754961039957,-391.0,0.0004114,30]
[378696667,1754961039967,-1448.38,0.00041748,120]
[378696669,1754961039975,-307.9,0.00042,30]
[378696671,1754961039984,-596.75,0.00042054,30]
[378696673,1754961039994,-159.83,0.0004215,2]
[378696675,1754961040003,-380.82791363,0.00043489,93]
[378696678,1754961040013,-700.0,0.00043836,18]
[378696680,1754961040022,-150.0,0.00044,57]
[378696682,1754961040032,-207.67379204,0.00044264,43]
[378696684,1754961040041,-1000.0,0.00044835,2]
[378696686,1754961040051,-548.0,0.00045254,60]
[378696688,1754961040060,-610.32,0.00045311,2]
[378696690,1754961040070,-307.9,0.000455,120]
[378696691,1754961040079,-313.40354733,0.00046,120]
[378696693,1754961040088,-188.96960064,0.00046,120]
[378696696,1754961040098,-380.82791363,0.00046207,99]
[378696698,1754961040107,-500.0,0.00047397,120]
[378696700,1754961040117,-207.67379204,0.00047491,50]
[378696702,1754961040126,-500.0,0.00047671,120]
[378696704,1754961040135,-500.0,0.00047945,120]
[378696706,1754961040144,-1448.38,0.00047972,120]
[378696708,1754961040153,-313.40354733,0.00048,120]
[378696709,1754961040162,-188.96960064,0.00048,120]
[378696711,1754961040172,-500.0,0.00048219,120]
[378696714,1754961040181,-500.0,0.00048493,120]
[378696716,1754961040191,-500.0,0.00048767,120]
[378696718,1754961040200,-380.82791363,0.00048924,106]
[378696719,1754961040209,-678.85531195,0.00049,120]
[378696722,1754961040225,-888.0,0.00025899,3]
[378696724,1754961040234,-9321.14468805,0.00049,120]
[378696726,1754961040243,-307.9,0.00049,120]
[378696749,1754961040252,-190.30138879,0.00049041,120]
[378696752,1754961040464,-1776.0,0.00028139,3]
[378696755,1754961040474,-309.69861121,0.00049041,120]
[378696757,1754961040483,-245.62548161,0.00049315,120]
[378696759,1754961040493,-310.0,0.00049315,30]
[378696761,1754961040502,-700.0,0.00049315,20]
[378696763,1754961040511,-1000.0,0.00049319,120]
[378696764,1754961040520,-300.0,0.00049499,120]
[378696766,1754961040530,-513.0,0.00049556,10]
[378696768,1754961040540,-768.0,0.00049779,60]
[378696771,1754961040550,-2067.0183,0.0005,120]
[378696773,1754961040560,-1000.0,0.0005,120]
[378696774,1754961040570,-500.0,0.0005,120]
[378696777,1754961040580,-791.613,0.00050166,89]
[378696779,1754961040590,-207.67379204,0.00050718,57]
[378696780,1754961040599,-9696.62824117,0.00051,30]
[378696783,1754961040613,-595.05,0.00051,30]
[378697057,1754961043031,-325.52614925,0.00051,30]
[378697060,1754961043040,-116.03434485,0.00051,120]
[378697063,1754961043052,-883.96565515,0.00051,120]
[378697066,1754961043061,-317.7277168,0.00051,120]
[378697337,1754961045691,-4787.33790081,0.00051,120]
[378697344,1754961045751,-309.79706417,0.00051,120]
[378697351,1754961045812,-833.66616641,0.00051,120]
[378697358,1754961045872,-2138.63240999,0.00051,120]
[378697366,1754961045933,-888.0,0.00050999,120]
[378697368,1754961045943,-3612.83874182,0.00051,120]
[378697370,1754961045952,-626.80709465,0.00051,120]
[378697372,1754961045963,-377.93920128,0.00051,120]
[378697373,1754961045978,-211.73953792,0.00051,30]
[378697375,1754961045988,-842.86497659,0.00051,30]
[378697377,1754961045998,-888.0,0.000515,30]
[378697379,1754961046008,-159.83,0.00051633,2]
[378697381,1754961046017,-380.82791363,0.00051642,112]
[378697384,1754961046027,-500.0,0.00051986,60]
[378697386,1754961046037,-500.0,0.00051986,60]
[378697387,1754961046046,-1000.0,0.00052,120]
[378697389,1754961046056,-513.0,0.00052167,20]
[378697391,1754961046065,-307.9,0.000525,120]
[378697393,1754961046074,-150.0,0.00052917,7]
[378697395,1754961046084,-1000.0,0.00053,120]
[378697397,1754961046093,-600.0,0.00053082,60]
[378697399,1754961046102,-500.0,0.00053082,60]
[378697401,1754961046111,-155.4105,0.0005346,66]
[378697403,1754961046121,-1776.0,0.0005374,30]
[378697405,1754961046130,-1000.0,0.00053802,120]
[378697407,1754961046140,-7885.46913457,0.000539,15]
[378697488,1754961046952,893.0,0.00022639,2]
[378697512,1754961047199,888.0,0.00023139,3]
[378699467,1754961069355,14967.15856778,0.00016595,2]
[378699468,1754961069382,35035.85947424,0.00016595,2]
[378699488,1754961069667,14964.14052576,0.00016584,2]
[378699492,1754961069693,35038.87751626,0.00016584,2]
[378699523,1754961069975,3300.73248374,0.00016587,2]
[378699526,1754961070001,41500.0,0.00016587,2]
[378699530,1754961070030,5202.28555828,0.00016587,2]
[378699556,1754961070259,44647.71444172,0.00016558,2]
[378699591,1754961485591,-5355.3036003,0.00016558,2]
[378699592,1754961485617,-44644.6963997,0.00016583,2]
[378699593,1754961488947,-5358.32164232,0.00016583,2]
[378699595,1754961571782,-4836.14988577,0.0002041,2]
[378699596,1754961571812,-300.0,0.00020509,2]
[378699597,1754961571842,-700.0,0.0002051,2]
[378699598,1754961571871,-700.0,0.0002051,2]
[378699599,1754961571899,-700.0,0.0002051,2]
[378699600,1754961571926,-700.0,0.0002051,2]
[378699601,1754961571957,-700.0,0.0002051,2]
[378699602,1754961572260,-700.0,0.0002051,2]
[378699603,1754961572286,-700.0,0.0002051,2]
[378699604,1754961572311,-700.0,0.0002051,2]
[378699605,1754961572335,-1000.0,0.00020802,5]
[378699606,1754961572370,-842.86497659,0.00021094,2]
[378699607,1754961572408,888.0,0.0002091,3]
[378699608,1754961575039,-420.0,0.0002232,2]
[378699609,1754961575065,-1000.0,0.00022561,5]
[378699610,1754961575270,888.0,0.0002282,3]
[378699611,1754961579951,-1000.0,0.00023128,5]
[378699612,1754961579977,-1776.0,0.0002315,3]
[378699613,1754961580001,-1253.0,0.00023999,2]
[378699614,1754961580026,-893.0,0.00023999,2]
[378699615,1754961580191,888.0,0.00023628,3]
[378699616,1754961586172,-150.99,0.00024292,2]
[378699617,1754961586198,-443.19,0.00024292,2]
[378699618,1754961586225,-587.0,0.00024292,2]
[378699619,1754961586253,-220.36761607,0.000249,2]
[378699620,1754961586417,888.0,0.00024792,3]
[378699623,1754961631040,162.26,0.00013699,2]
[378699624,1754961631434,1171.0,0.00023999,2]
[378699625,1754961631673,888.0,0.00024499,3]
[378699626,1754961638855,893.0,0.00023999,2]
[378699627,1754961639106,888.0,0.00023998,3]
[378699628,1754961660976,220.36761606,0.000249,2]
[378699629,1754961835272,220.36761606,0.000249,2]
[378699630,1754961835518,888.0,0.00024899,3]
[378699631,1754961908877,42379.45715181,0.00019,2]
[378699632,1754961908906,44190.0,0.00019,2]
[378699633,1754961908937,47692.0,0.00019,2]
[378699634,1754961908966,48269.13502341,0.00019,2]
[378699635,1754961908995,38263.85011423,0.00019,2]
[378699636,1754961909025,50000.0,0.00019,2]
[378699637,1754961909055,50000.0,0.00019,2]
[378699638,1754961909085,50000.0,0.00019,2]
[378699639,1754961964159,-300.0,0.00018999,2]
[378699640,1754961964185,-24007.37550732,0.00019,2]
[378699641,1754962024506,50000.0,0.0001799,2]
[378699642,1754962024533,50000.0,0.0001799,2]
[378699643,1754962024560,25692.62449268,0.0001799,2]
[378699644,1754962024586,50000.0,0.0001799,2]
[378699645,1754962024615,50000.0,0.0001799,2]
[378699646,1754962049645,-50000.0,0.0001799,2]
[378699647,1754962050463,-50000.0,0.0001799,2]
[378699648,1754962051288,-50000.0,0.0001799,2]
[378699649,1754962052148,-50000.0,0.0001799,2]
[378699650,1754962053029,-50000.0,0.0001799,2]
[378699651,1754962054029,-50000.0,0.0001799,2]
[378699652,1754962054806,-50000.0,0.0001799,2]
[378699653,1754962055675,-50000.0,0.0001799,2]
[378699654,1754962056485,-50000.0,0.0001799,2]
[378699655,1754962057546,-50000.0,0.0001799,2]
[378699656,1754962058422,-50000.0,0.0001799,2]
[378699657,1754962059509,-47123.23828259,0.0001799,2]
[378699672,1754962211059,788.5566052,0.00016574,2]
[378699673,1754962211346,788.5566052,0.00016577,2]
[378699674,1754962211629,788.5566052,0.00016575,2]
[378699675,1754962211921,511.09190181,0.00016555,2]
[378699676,1754962211951,277.46470339,0.00016555,2]
[378699677,1754962212578,788.5566052,0.00016571,2]
[378699695,1754962232120,-781.07945113,0.000209,5]
[378699697,1754962232132,-218.92054887,0.000209,5]
[378699699,1754962232143,-714.11036233,0.0002095,5]
[378699700,1754962232157,-285.88963767,0.0002095,5]
[378699702,1754962232167,-261.36889935,0.00021,2]
[378699710,1754962232527,-438.63110065,0.00021,2]
[378699711,1754962232537,-700.0,0.00021,2]
[378699712,1754962232547,-700.0,0.00021,2]
[378699713,1754962232556,-700.0,0.00021,2]
[378699714,1754962232565,-700.0,0.00021,2]
[378699715,1754962232574,-700.0,0.00021,2]
[378699716,1754962232584,-700.0,0.00021,2]
[378699717,1754962232592,-700.0,0.00021,2]
[378699718,1754962232602,-888.0,0.000214,3]
[378699719,1754962232611,-1000.0,0.00021499,5]
[378699720,1754962232621,-2500.0,0.0002299,2]
[378699721,1754962232630,-1000.0,0.0002299,5]
[378699722,1754962232640,-1776.0,0.0002364,3]
[378699723,1754962232649,-1000.0,0.00023716,5]
[378699724,1754962232659,-811.0,0.00023999,2]
[378699725,1754962232669,-960.062,0.00024013,2]
[378699726,1754962232679,-150.99,0.0002498,2]
[378699727,1754962232689,-162.26,0.00026027,2]
[378699728,1754962232701,-457.87080987,0.00028584,2]
[378699729,1754962232711,-2108.4888,0.000349,2]
[378699730,1754962232720,-474.967,0.000349,40]
[378699731,1754962232730,-21953.50951826,0.00035,14]
[378699732,1754962232742,-1365.04970483,0.00035,14]
[378699733,1754962232753,-864.24615798,0.00035,14]
[378699734,1754962232765,-2092.6157523,0.00035,14]
[378699735,1754962232790,-3454.54270801,0.00035,14]
[378699736,1754962232801,-1120.52601289,0.00035,14]
[378699737,1754962232813,-436.54,0.00035,14]
[378699738,1754962232825,-77784.64014573,0.00035,14]
[378699739,1754962232835,-156.78,0.00035272,2]
[378699740,1754962232844,-1000.0,0.00036135,2]
[378699741,1754962232853,-322.38,0.00037,2]
[378699742,1754962232862,-156.78,0.00037002,2]
[378699743,1754962232872,-1000.0,0.00037074,2]
[378699744,1754962232881,-170.0,0.00037344,7]
[378699745,1754962232891,-1086.28,0.00037403,30]
[378699746,1754962232900,-300.0,0.00037489,2]
[378699747,1754962232909,-337.57,0.00037672,2]
[378699748,1754962232918,-151.0,0.00038301,2]
[378699749,1754962232928,-162.26,0.00038356,2]
[378699750,1754962232937,-156.78,0.00038733,2]
[378699751,1754962232947,-666.0,0.00039071,3]